bitfinex/quotes_BTCUSD_20211001
["timestamp","ask_amount","ask_price","bid_price","bid_amount"]
[1633058822618,0.036,43462.0,43461.0,0.22488928]
[1633058822814,0.24082016,43475.0,43462.0,1.15]
[1633058822815,0.21782016,43475.0,43462.0,1.15]
[1633058823113,0.21782016,43475.0,43465.0,0.17931881]
[1633058823314,0.229729,43474.0,43466.0,0.24898102]
[1633058823513,0.01223975,43473.0,43467.0,0.09213804]
[1633058823715,0.21782016,43475.0,43467.0,0.09213804]
[1633058823913,0.345196,43474.0,43467.0,0.09266814]
[1633058824314,0.345196,43474.0,43467.0,0.09213804]
[1633058824715,0.12403939,43473.0,43467.0,0.10813804]
[1633058824912,0.033,43473.0,43467.0,0.016]
[1633058825112,0.345216,43470.0,43467.0,0.016]
[1633058825315,0.345216,43470.0,43468.0,0.12185291]
[1633058825512,0.033,43473.0,43467.0,0.016]
[1633058825714,0.05,43470.0,43467.0,0.016]
[1633058825912,0.15,43472.0,43466.0,0.00980134]
[1633058826115,0.15,43472.0,43466.0,0.23360948]
[1633058826314,0.35765109,43471.0,43466.0,0.22860948]
[1633058826513,0.1,43470.0,43466.0,0.22860948]
[1633058826716,0.1,43470.0,43466.0,0.23997742]
[1633058827216,1.74114224,43469.0,43466.0,0.23997742]
[1633058827417,0.229729,43468.0,43466.0,0.23997742]
[1633058827617,1.74114224,43467.0,43466.0,0.01616928]
[1633058827816,1.79114224,43467.0,43466.0,0.01616928]
[1633058828018,1.79114224,43467.0,43466.0,0.00916928]
[1633058828418,1.79114224,43467.0,43463.0,0.2370772]
[1633058828620,1.74114224,43466.0,43463.0,0.2370772]
[1633058829222,1.74114224,43466.0,43461.0,0.22183432]
[1633058829420,1.74114224,43466.0,43461.0,0.3032299]
[1633058830018,1.58133515,43466.0,43462.0,0.01722573]
[1633058830219,1.58133515,43465.0,43464.0,0.49222937]
[1633058830419,0.1,43470.0,43464.0,0.19222937]
[1633058830621,0.034,43466.0,43464.0,0.19222937]
[1633058830818,1.58133524,43465.0,43464.0,0.19222937]
[1633058832220,0.345242,43465.0,43464.0,0.19222937]
[1633058832620,0.033,43465.0,43464.0,0.20522937]
[1633058834024,0.05,43469.0,43464.0,0.19222937]
[1633058834224,1.58133524,43468.0,43464.0,0.19222937]
[1633058834432,1.58133524,43468.0,43466.0,0.34643546]
[1633058834629,2.0,43475.0,43473.0,0.11743544]
[1633058834828,2.0,43475.0,43474.0,0.43722669]
[1633058835026,2.0,43475.0,43474.0,0.45396808]
[1633058835426,2.0,43475.0,43474.0,0.52933423]
[1633058835626,2.0,43475.0,43474.0,0.57529634]
[1633058835826,2.0,43475.0,43474.0,0.69829634]
[1633058836026,2.0,43475.0,43474.0,0.29973019]
[1633058836231,2.59562577,43475.0,43470.0,0.023]
[1633058836425,2.36589677,43475.0,43470.0,0.023]
[1633058836627,0.23203626,43474.0,43470.0,0.023]
[1633058837031,0.23203626,43474.0,43463.0,0.00128507]
[1633058837032,0.09627943,43472.0,43463.0,0.00128507]
[1633058837226,0.09627943,43472.0,43462.0,0.06637525]
[1633058837227,1.14716938,43471.0,43460.0,2.73668418]
[1633058837428,1.70050024,43470.0,43460.0,2.73668418]
[1633058837627,0.5965857,43470.0,43460.0,2.73668418]
[1633058837825,1.12557124,43469.0,43461.0,1.16148896]
[1633058838027,0.25109306,43469.0,43461.0,1.16148896]
[1633058838228,0.02136406,43469.0,43464.0,0.08113105]
[1633058838631,0.05136406,43469.0,43468.0,0.19845005]
[1633058839429,0.03,43469.0,43468.0,0.19845005]
[1633058840030,0.3452,43470.0,43468.0,0.17545005]
[1633058840230,0.229729,43469.0,43468.0,0.17545005]
[1633058840634,1.37830024,43469.0,43468.0,0.17545005]
[1633058840834,1.52957953,43469.0,43468.0,0.17545005]
[1633058841829,1.52957953,43469.0,43468.0,0.17045005]
[1633058842833,1.55757953,43469.0,43468.0,0.18545005]
[1633058843632,1.80757953,43469.0,43468.0,0.18545005]
[1633058844033,1.77957953,43469.0,43468.0,0.17045005]
[1633058844903,1.80857953,43469.0,43468.0,0.18545005]
[1633058845835,1.80857953,43469.0,43468.0,0.18045005]
[1633058846234,1.80857953,43469.0,43468.0,0.16545005]
[1633058846235,1.77957953,43469.0,43468.0,0.16545005]
[1633058846836,1.55757953,43469.0,43468.0,0.18045005]
[1633058847241,1.80757953,43469.0,43468.0,0.18045005]
[1633058847442,1.55757953,43469.0,43468.0,0.18045005]
[1633058847638,1.80757953,43469.0,43468.0,0.18045005]
[1633058848042,1.77957953,43469.0,43468.0,0.16545005]
[1633058848839,1.80757953,43469.0,43468.0,0.18045005]
[1633058850042,1.80757953,43469.0,43468.0,0.16545005]
[1633058850043,1.77957953,43469.0,43468.0,0.16545005]
[1633058850899,1.80757953,43469.0,43468.0,0.18045005]
[1633058852040,1.77957953,43469.0,43468.0,0.16545005]
[1633058852842,1.81657953,43469.0,43468.0,0.16545005]
[1633058854045,1.37830024,43469.0,43468.0,0.16545005]
[1633058854844,1.41530024,43469.0,43468.0,0.16545005]
[1633058855446,1.46530024,43469.0,43468.0,0.15585005]
[1633058856247,1.42830024,43469.0,43468.0,0.15585005]
[1633058856846,1.46230024,43469.0,43468.0,0.15685005]
[1633058858246,1.42830024,43469.0,43468.0,0.15585005]
[1633058858847,1.43830024,43469.0,43468.0,0.16985005]
[1633058859447,1.43330024,43469.0,43468.0,0.16985005]
[1633058860859,1.46630024,43469.0,43468.0,0.18385005]
[1633058861049,1.43330024,43469.0,43468.0,0.16985005]
[1633058862250,1.40030024,43469.0,43468.0,0.15585005]
[1633058862910,1.43330024,43469.0,43468.0,0.16985005]
[1633058864650,1.40030024,43469.0,43468.0,0.15585005]
[1633058865051,1.43330024,43469.0,43468.0,0.16985005]
[1633058866252,1.43330024,43469.0,43468.0,0.15585005]
[1633058866253,1.40030024,43469.0,43468.0,0.15585005]
[1633058866852,1.43330024,43469.0,43468.0,0.16985005]
[1633058868053,1.40030024,43469.0,43468.0,0.15585005]
[1633058868854,1.43330024,43469.0,43468.0,0.16985005]
[1633058870254,1.40030024,43469.0,43468.0,0.15585005]
[1633058870857,1.43330024,43469.0,43468.0,0.16985005]
[1633058872256,1.40030024,43469.0,43468.0,0.15585005]
[1633058872456,1.40030024,43469.0,43468.0,0.93253595]
[1633058872858,1.43230024,43469.0,43468.0,0.94653595]
[1633058874260,1.43230024,43469.0,43468.0,0.93253595]
[1633058874461,1.40030024,43469.0,43468.0,0.93253595]
[1633058875062,1.19357124,43469.0,43468.0,0.95253595]
[1633058876065,1.42330024,43469.0,43468.0,0.95253595]
[1633058876269,2.0,43475.0,43472.0,0.230148]
[1633058876463,0.0012,43475.0,43474.0,1.18637151]
[1633058876667,0.0012,43475.0,43474.0,1.18761913]
[1633058876862,0.0072,43475.0,43474.0,1.18814923]
[1633058877263,0.0072,43475.0,43474.0,1.71774869]
[1633058877460,0.0072,43475.0,43474.0,0.4673438]
[1633058877661,0.0072,43475.0,43474.0,0.34877953]
[1633058877924,0.02748818,43475.0,43474.0,0.31240802]
[1633058878061,0.0072,43475.0,43474.0,0.31240802]
[1633058878261,0.0012,43475.0,43474.0,0.08920802]
[1633058878464,0.0012,43475.0,43472.0,0.230148]
[1633058878863,0.0012,43475.0,43474.0,0.924]
[1633058878864,0.0312,43475.0,43474.0,0.924]
[1633058879064,0.0312,43475.0,43474.0,0.024]
[1633058879463,0.0312,43475.0,43474.0,0.10250692]
[1633058880265,0.0012,43475.0,43474.0,0.07850692]
[1633058880468,0.0012,43475.0,43474.0,0.3215156]
[1633058880922,0.0012,43475.0,43474.0,0.3435156]
[1633058881064,0.0322,43475.0,43474.0,0.3435156]
[1633058882267,0.0012,43475.0,43474.0,0.3215156]
[1633058882867,0.0322,43475.0,43474.0,0.3435156]
[1633058883068,0.0322,43475.0,43474.0,0.37384279]
[1633058884271,0.0012,43475.0,43474.0,0.35184279]
[1633058884870,0.0332,43475.0,43474.0,0.37784279]
[1633058886072,0.0332,43475.0,43474.0,0.37837289]
[1633058886275,0.0012,43475.0,43474.0,0.35184279]
[1633058886937,0.0332,43475.0,43474.0,0.37784279]
[1633058887474,0.0332,43475.0,43474.0,0.37837289]
[1633058887677,0.0332,43475.0,43474.0,0.37784279]
[1633058889682,0.0332,43475.0,43474.0,0.35237289]
[1633058889940,0.0012,43475.0,43474.0,0.35237289]
[1633058890086,0.0012,43475.0,43474.0,0.35184279]
[1633058890882,0.0332,43475.0,43474.0,0.37784279]
[1633058891082,0.0332,43475.0,43474.0,0.13483411]
[1633058892284,0.0332,43475.0,43474.0,0.10883411]
[1633058892484,0.0012,43475.0,43474.0,0.10883411]
[1633058892947,0.0332,43475.0,43474.0,0.13483411]
[1633058894288,0.0332,43475.0,43474.0,0.10883411]
[1633058894289,0.0012,43475.0,43474.0,0.10883411]
[1633058894887,0.0332,43475.0,43474.0,0.13483411]
[1633058896090,0.0332,43475.0,43474.0,0.36770418]
[1633058896290,0.0332,43475.0,43474.0,0.34223428]
[1633058896291,0.0012,43475.0,43474.0,0.34223428]
[1633058896893,0.0322,43475.0,43474.0,0.36723428]
[1633058897091,0.0322,43475.0,43474.0,0.36670418]
[1633058897292,0.0322,43475.0,43474.0,0.82678918]
[1633058898957,0.0312,43475.0,43474.0,0.82878918]
[1633058899893,0.0312,43475.0,43474.0,0.82931928]
[1633058900097,0.0312,43475.0,43474.0,0.88052438]
[1633058900300,2.98292153,43490.0,43475.0,1.15]
[1633058900301,2.9165,43490.0,43475.0,1.15]
[1633058900498,2.9165,43490.0,43481.0,0.0250399]
[1633058900695,0.19997751,43488.0,43483.0,0.21750655]
[1633058900900,2.9165,43490.0,43486.0,0.09298212]
[1633058900901,0.027,43490.0,43486.0,0.09298212]
[1633058901100,0.027,43490.0,43487.0,0.25253162]
[1633058901297,0.027,43490.0,43487.0,0.45435859]
[1633058901699,0.027,43490.0,43487.0,0.25253162]
[1633058901980,0.22118501,43489.0,43487.0,0.25253162]
[1633058902501,0.5114373,43495.0,43487.0,0.25253162]
[1633058902502,0.06642088,43495.0,43487.0,0.25253162]
[1633058902700,0.06642042,43496.0,43488.0,0.0005301]
[1633058903098,0.029,43489.0,43487.0,0.27306172]
[1633058903501,0.029,43489.0,43488.0,0.24668523]
[1633058903699,0.029,43489.0,43488.0,0.48863905]
[1633058904298,0.19451553,43491.0,43488.0,0.48863905]
[1633058904499,0.02048103,43490.0,43488.0,0.48863905]
[1633058904707,0.02048103,43490.0,43489.0,0.23038065]
[1633058904965,0.19451553,43491.0,43489.0,0.23038065]
[1633058905099,0.22551553,43491.0,43489.0,0.23038065]
[1633058906300,0.19451553,43491.0,43489.0,0.23038065]
[1633058906700,0.30052011,43491.0,43489.0,0.23038065]
[1633058906901,0.30052011,43491.0,43489.0,0.019]
[1633058907102,0.22551553,43491.0,43489.0,0.019]
[1633058908304,0.19451553,43491.0,43488.0,0.24434225]
[1633058908505,0.19451553,43491.0,43485.0,0.0872502]
[1633058908703,0.19451553,43491.0,43485.0,0.34259356]
[1633058908903,0.19451553,43491.0,43488.0,0.018]
[1633058909103,0.22551553,43491.0,43488.0,0.018]
[1633058910304,0.22551553,43491.0,43487.0,0.23312829]
[1633058910504,0.19451553,43491.0,43487.0,0.23312829]
[1633058911106,0.22451553,43491.0,43487.0,0.25312829]
[1633058911507,0.22451553,43491.0,43488.0,0.0005301]
[1633058912307,0.19451553,43491.0,43488.0,0.0005301]
[1633058912908,0.19451553,43491.0,43487.0,0.23365839]
[1633058913105,0.22451553,43491.0,43488.0,0.018]
[1633058914110,0.11651101,43490.0,43488.0,0.018]
[1633058914310,0.0092423,43489.0,43488.0,0.018]
[1633058914511,0.0092423,43489.0,43482.0,0.29201339]
[1633058914709,0.0092423,43489.0,43482.0,0.01312971]
[1633058914909,0.0092423,43489.0,43481.0,2.77473787]
[1633058915113,0.05354817,43489.0,43484.0,0.2208887]
[1633058915310,0.02101578,43488.0,43485.0,0.23602998]
[1633058916977,0.19451553,43491.0,43485.0,0.23602998]
[1633058917116,0.031,43488.0,43485.0,0.25755939]
[1633058917517,0.02035742,43487.0,43485.0,0.25755939]
[1633058917723,0.02035742,43487.0,43486.0,0.795009]
[1633058917922,0.02035742,43487.0,43486.0,0.345009]
[1633058918118,0.031,43488.0,43486.0,0.345009]
[1633058918318,0.023,43494.0,43486.0,0.345009]
[1633058918516,0.02038699,43493.0,43486.0,0.345009]
[1633058918719,0.02038699,43493.0,43486.0,0.3455391]
[1633058918918,0.02038699,43493.0,43486.0,0.345009]
[1633058918919,0.21762658,43491.0,43486.0,0.345009]
[1633058919118,0.02105067,43490.0,43486.0,0.366009]
[1633058919321,0.02105067,43490.0,43486.0,0.021]
[1633058919322,0.08652603,43488.0,43486.0,0.021]
[1633058919522,0.01347671,43487.0,43486.0,0.021]
[1633058920322,0.01347671,43487.0,43485.0,0.23126534]
[1633058920919,0.01347671,43487.0,43485.0,0.00152941]
[1633058921125,0.00129765,43486.0,43485.0,0.02152941]
[1633058921321,0.02649138,43486.0,43485.0,0.02152941]
[1633058921523,0.25622038,43486.0,43485.0,0.02152941]
[1633058922323,0.25622038,43486.0,43485.0,0.00152941]
[1633058922524,0.25492273,43486.0,43485.0,0.00152941]
[1633058923126,0.25492273,43486.0,43485.0,0.00752941]
[1633058923127,0.28792273,43486.0,43485.0,0.00752941]
[1633058923526,0.05819373,43486.0,43485.0,0.00752941]
[1633058924127,0.05819373,43486.0,43485.0,0.50071601]
[1633058924329,0.06643961,43500.0,43485.0,0.5176319]
[1633058924528,0.914,43504.0,43501.0,0.19823366]
[1633058924529,0.06643662,43502.0,43501.0,0.19823366]
[1633058924727,0.25910355,43502.0,43501.0,0.17310267]
[1633058924926,0.11896247,43502.0,43501.0,0.17310267]
[1633058925125,0.14796247,43502.0,43501.0,0.19010267]
[1633058925530,0.14796247,43502.0,43501.0,0.017]
[1633058925728,0.57742235,43502.0,43501.0,0.017]
[1633058925988,0.70949383,43502.0,43501.0,0.017]
[1633058926325,0.75949383,43502.0,43501.0,0.017]
[1633058926525,0.08567396,43496.0,43491.0,0.31888731]
[1633058926729,0.36519797,43495.0,43491.0,0.31888731]
[1633058926926,0.02017997,43495.0,43491.0,0.31941741]
[1633058927128,0.028,43496.0,43491.0,0.34041741]
[1633058927526,0.028,43496.0,43491.0,0.33988731]
[1633058927925,0.12019141,43494.0,43491.0,0.33988731]
[1633058928326,0.12019141,43494.0,43491.0,0.31888731]
[1633058928527,0.12019141,43494.0,43491.0,0.53362936]
[1633058929128,0.14919141,43494.0,43491.0,0.55362936]
[1633058930328,0.12019141,43494.0,43491.0,0.53362936]
[1633058930732,0.12019141,43494.0,43491.0,0.31888731]
[1633058930929,0.12019141,43494.0,43488.0,0.32877639]
[1633058931130,0.15019141,43494.0,43491.0,0.02]
[1633058931530,0.03,43494.0,43491.0,0.02]
[1633058931998,0.03,43494.0,43491.0,0.24995604]
[1633058932131,0.03,43494.0,43492.0,0.25321034]
[1633058932330,0.06646241,43501.0,43492.0,0.25321034]
[1633058932531,0.06646241,43501.0,43497.0,0.0887166]
[1633058932732,0.09515972,43499.0,43498.0,0.25086503]
[1633058933931,0.29170717,43499.0,43498.0,0.25086503]
[1633058934332,0.09515972,43499.0,43498.0,0.25086503]
[1633058934531,0.11602814,43499.0,43498.0,0.25086503]
[1633058934731,0.11602814,43499.0,43492.0,0.25452271]
[1633058935132,0.14902814,43499.0,43498.0,0.014]
[1633058935536,0.37791391,43499.0,43498.0,0.014]
[1633058936133,0.12815972,43499.0,43498.0,0.014]
[1633058936334,0.09515972,43499.0,43495.0,0.25610892]
[1633058936535,0.02040124,43498.0,43495.0,0.25610892]
[1633058937136,0.22306032,43497.0,43495.0,0.27710892]
[1633058937337,0.0203407,43496.0,43495.0,0.27710892]
[1633058937536,0.22306032,43497.0,43495.0,0.27710892]
[1633058937738,0.22306032,43497.0,43495.0,0.021]
[1633058938337,0.22306032,43497.0,43492.0,0.33804113]
[1633058938542,0.22427505,43497.0,43492.0,0.25787877]
[1633058938738,0.22427505,43497.0,43492.0,0.22966893]
[1633058939137,0.25527505,43497.0,43492.0,0.25366893]
[1633058939539,0.25527505,43497.0,43496.0,2.64132404]
[1633058939738,0.27591813,43497.0,43496.0,2.64132404]
[1633058940340,0.22427505,43497.0,43496.0,2.64132404]
[1633058941143,0.25727505,43497.0,43496.0,2.65832404]
[1633058941341,0.25606032,43497.0,43496.0,2.65832404]
[1633058942539,0.22306032,43497.0,43496.0,2.64285309]
[1633058943140,0.25606032,43497.0,43496.0,2.65985309]
[1633058944142,0.033,43497.0,43496.0,2.65985309]
[1633058944342,0.028,43497.0,43496.0,2.67639341]
[1633058944542,0.09515972,43499.0,43496.0,2.65939341]
[1633058944744,0.09515972,43499.0,43497.0,0.23565362]
[1633058945141,0.12715972,43499.0,43497.0,0.23565362]
[1633058945342,0.20286159,43498.0,43497.0,0.23565362]
[1633058945542,0.20286159,43498.0,43497.0,0.23098365]
[1633058945742,0.20286159,43498.0,43496.0,2.67639341]
[1633058946544,0.20286159,43498.0,43497.0,0.22939089]
[1633058946742,0.22310372,43498.0,43496.0,2.65939341]
[1633058947004,0.20286159,43498.0,43496.0,2.65939341]
[1633058947144,0.23686159,43498.0,43497.0,0.016]
[1633058947544,0.24716634,43498.0,43497.0,0.016]
[1633058949149,0.24616634,43498.0,43497.0,0.016]
[1633058949946,0.21316634,43498.0,43496.0,2.64285309]
[1633058950147,0.02123198,43497.0,43496.0,2.64285309]
[1633058951150,0.05423198,43497.0,43496.0,2.65985309]
[1633058952549,0.02123198,43497.0,43496.0,2.64285309]
[1633058953155,0.05423198,43497.0,43496.0,2.65985309]
[1633058953551,0.033,43497.0,43496.0,2.65985309]
[1633058954553,0.6143399,43498.0,43496.0,2.65985309]
[1633058954554,0.6143399,43498.0,43496.0,2.64285309]
[1633058955153,0.6483399,43498.0,43496.0,2.65985309]
[1633058955555,0.6483399,43498.0,43496.0,0.01852905]
[1633058955556,0.06779496,43497.0,43496.0,0.01852905]
[1633058955755,0.29752396,43497.0,43496.0,0.01852905]
[1633058956354,0.29752396,43497.0,43496.0,0.01352905]
[1633058956556,0.29752396,43497.0,43492.0,0.23667015]
[1633058956761,0.345006,43496.0,43491.0,0.28642495]
[1633058956959,0.02141169,43495.0,43491.0,0.28642495]
[1633058957156,0.02141169,43495.0,43492.0,0.021]
[1633058958156,0.345006,43496.0,43492.0,0.021]
[1633058958358,0.41151024,43496.0,43491.0,0.30194064]
[1633058958555,0.41151024,43496.0,43491.0,0.20281824]
[1633058959161,0.44051024,43496.0,43491.0,0.22481824]
[1633058960158,0.11477428,43492.0,43491.0,0.22481824]
[1633058960357,0.11477428,43492.0,43491.0,0.20281824]
[1633058960558,0.13510817,43492.0,43487.0,0.81720938]
[1633058960758,0.13510817,43492.0,43487.0,0.58813913]
[1633058960959,0.02005596,43491.0,43487.0,0.58813913]
[1633058961157,0.14177428,43492.0,43487.0,0.61513913]
[1633058961362,0.14177428,43492.0,43487.0,0.6921693]
[1633058961562,0.027,43492.0,43488.0,0.42117123]
[1633058961765,0.027,43492.0,43489.0,0.01801843]
[1633058962025,0.027,43492.0,43489.0,0.01854853]
[1633058962164,0.027,43492.0,43490.0,0.0005301]
[1633058962360,0.0665068,43497.0,43490.0,0.0005301]
[1633058962762,0.17073238,43498.0,43490.0,0.0005301]
[1633058963062,0.17073238,43498.0,43495.0,1.69358781]
[1633058963261,0.17073238,43498.0,43496.0,0.22830941]
[1633058963262,0.05011525,43497.0,43496.0,0.22830941]
[1633058963464,0.03,43497.0,43496.0,0.22830941]
[1633058963667,0.03,43497.0,43496.0,0.24378802]
[1633058964466,0.06650439,43501.0,43496.0,0.32880805]
[1633058964664,0.06649956,43502.0,43501.0,0.20021542]
[1633058964863,0.06649956,43502.0,43501.0,0.61258399]
[1633058965264,0.11467975,43502.0,43501.0,0.63258399]
[1633058966263,0.09449956,43502.0,43501.0,0.63258399]
[1633058966463,0.06649956,43502.0,43501.0,0.61258399]
[1633058966665,0.0664868,43503.0,43502.0,0.21338371]
[1633058966864,0.0664868,43503.0,43502.0,0.46444039]
[1633058967267,0.0944868,43503.0,43502.0,0.48244039]
[1633058967468,0.028,43503.0,43502.0,0.48244039]
[1633058968464,0.10547701,43504.0,43502.0,0.46444039]
[1633058968665,0.10547701,43504.0,43503.0,0.24126743]
[1633058968865,0.12653467,43504.0,43503.0,0.24126743]
[1633058969266,0.15653467,43504.0,43503.0,0.25726743]
[1633058970069,0.15653467,43504.0,43503.0,0.016]
[1633058970467,0.35626367,43504.0,43498.0,0.27321381]
[1633058970667,0.02274874,43503.0,43498.0,0.27321381]
[1633058971069,0.02274874,43503.0,43499.0,0.26515334]
[1633058971271,0.028,43503.0,43499.0,0.26515334]
[1633058971671,0.028,43503.0,43498.0,0.29621381]
[1633058971871,0.029812,43501.0,43498.0,0.29621381]
[1633058972469,0.029812,43501.0,43498.0,0.27321381]
[1633058973069,0.029812,43501.0,43500.0,0.21425297]
[1633058973270,0.057812,43501.0,43500.0,0.4552841]
[1633058974732,0.029812,43501.0,43500.0,0.4552841]
[1633058975332,0.062812,43501.0,43500.0,0.4742841]
[1633058975532,0.033,43501.0,43500.0,0.4742841]
[1633058975737,0.02080229,43501.0,43500.0,0.4552841]
[1633058977341,0.04880229,43501.0,43500.0,0.4742841]
[1633058978541,0.02080229,43501.0,43500.0,0.4552841]
[1633058979344,0.04980229,43501.0,43500.0,0.4752841]
[1633058979545,0.04480229,43501.0,43500.0,0.4752841]
[1633058980546,0.01580229,43501.0,43500.0,0.4552841]
[1633058981344,0.04480229,43501.0,43500.0,0.26103113]
[1633058981943,0.27453129,43501.0,43500.0,0.26103113]
[1633058982547,0.01580229,43501.0,43500.0,0.24103113]
[1633058983343,0.04980229,43501.0,43500.0,0.25203113]
[1633058984545,0.01580229,43501.0,43500.0,0.24103113]
[1633058985352,0.04280229,43501.0,43500.0,0.25303113]
[1633058986549,0.01580229,43501.0,43500.0,0.24103113]
[1633058987152,0.51686368,43504.0,43500.0,0.24103113]
[1633058987349,0.027,43501.0,43500.0,0.25303113]
[1633058987751,0.03764082,43501.0,43500.0,0.25303113]
[1633058989152,0.01064082,43501.0,43500.0,0.24103113]
[1633058989351,0.04364082,43501.0,43500.0,0.25203113]
[1633058990154,0.04364082,43501.0,43500.0,0.011]
[1633058990753,0.04364082,43501.0,43498.0,0.18570829]
[1633058990754,0.01064082,43501.0,43498.0,0.18570829]
[1633058990954,0.24412467,43495.0,43491.0,0.19124174]
[1633058991153,0.01076009,43494.0,43491.0,0.19124174]
[1633058991553,0.06650581,43499.0,43491.0,0.19124174]
[1633058991754,0.07793433,43499.0,43491.0,0.19124174]
[1633058991952,0.00978154,43498.0,43493.0,0.07304218]
[1633058992353,0.24622209,43498.0,43493.0,0.07304218]
[1633058992558,0.00975493,43497.0,43495.0,0.24055345]
[1633058993354,0.03175493,43497.0,43495.0,0.26655345]
[1633058993556,0.01081087,43496.0,43495.0,0.26655345]
[1633058993954,0.01081087,43496.0,43495.0,0.026]
[1633058994557,0.01081087,43496.0,43492.0,0.80488276]
[1633058995156,0.01081087,43496.0,43492.0,1.0280027]
[1633058995359,0.02981087,43496.0,43492.0,1.0590027]
[1633058995561,0.00978769,43495.0,43492.0,1.0590027]
[1633058996560,0.34727587,43498.0,43492.0,1.0280027]
[1633058997159,0.01005751,43497.0,43492.0,1.0280027]
[1633058997364,0.01005751,43497.0,43492.0,1.0590027]
[1633058998362,0.019,43498.0,43492.0,1.0590027]
[1633058998559,0.62465765,43500.0,43492.0,1.0280027]
[1633058998963,0.01037467,43499.0,43492.0,1.0280027]
[1633058999360,0.7601581,43500.0,43492.0,1.0590027]
[1633059000566,0.7411581,43500.0,43492.0,1.0280027]
[1633059001364,0.7601581,43500.0,43494.0,0.0061652]
[1633059002165,0.7601581,43500.0,43499.0,1.75840444]
[1633059002369,0.77002051,43500.0,43499.0,1.75840444]
[1633059002566,0.75102051,43500.0,43499.0,1.75840444]
[1633059002767,0.7411581,43500.0,43499.0,1.75840444]
[1633059003268,0.7731581,43500.0,43499.0,1.77240444]
[1633059004570,0.74116294,43500.0,43499.0,1.75840444]
[1633059005371,0.77416294,43500.0,43499.0,1.77240444]
[1633059005978,0.42918994,43500.0,43499.0,1.77240444]
[1633059006575,0.39618994,43500.0,43499.0,1.75840444]
[1633059007375,0.42918994,43500.0,43499.0,1.77240444]
[1633059008579,0.36268168,43500.0,43499.0,1.77240444]
[1633059008785,0.36467691,43500.0,43499.0,1.75840444]
[1633059009179,0.36467691,43500.0,43499.0,1.75665729]
[1633059009385,0.39767691,43500.0,43499.0,1.77065729]
[1633059009580,0.4716927,43500.0,43499.0,1.77065729]
[1633059009780,0.39768048,43500.0,43499.0,1.77065729]
[1633059010180,0.21602111,43500.0,43499.0,1.77065729]
[1633059010783,0.18302111,43500.0,43499.0,1.75665729]
[1633059010980,0.06652066,43500.0,43499.0,1.75665729]
[1633059011386,0.09952066,43500.0,43499.0,1.77065729]
[1633059012587,0.06636841,43500.0,43499.0,1.75665729]
[1633059013389,0.09836841,43500.0,43499.0,1.77065729]
[1633059013788,0.032,43500.0,43499.0,1.77065729]
[1633059014492,0.032,43500.0,43499.0,1.77118739]
[1633059014690,0.42090927,43506.0,43499.0,1.76238176]
[1633059014892,0.42090927,43506.0,43500.0,0.49982414]
[1633059015093,0.42090927,43506.0,43502.0,0.00574677]
[1633059015297,0.42090927,43506.0,43504.0,0.10887216]
[1633059015494,0.43390927,43506.0,43505.0,0.46720847]
[1633059015897,0.44359448,43506.0,43505.0,0.36219486]
[1633059016496,0.44359448,43506.0,43505.0,0.70701186]
[1633059016692,0.43059448,43506.0,43505.0,0.70701186]
[1633059016894,0.42090927,43506.0,43505.0,0.70701186]
[1633059017092,0.42090927,43506.0,43505.0,0.91908246]
[1633059017292,0.42090927,43506.0,43505.0,0.91769705]
[1633059017494,0.43390927,43506.0,43505.0,0.94569705]
[1633059018297,0.43390927,43506.0,43505.0,0.94516695]
[1633059018496,0.43390927,43506.0,43505.0,0.94861627]
[1633059019297,0.42090927,43506.0,43505.0,0.92061627]
[1633059019500,0.43390927,43506.0,43505.0,0.94861627]
[1633059020698,0.42090927,43506.0,43505.0,0.92061627]
[1633059021498,0.43490927,43506.0,43505.0,0.94861627]
[1633059022558,0.43490927,43506.0,43505.0,0.87173413]
[1633059022758,0.42090927,43506.0,43505.0,0.84373413]
[1633059023358,0.43390927,43506.0,43505.0,0.87173413]
[1633059023560,0.43390927,43506.0,43505.0,0.96654933]
[1633059024362,0.43390927,43506.0,43505.0,0.96512586]
[1633059024758,0.42090927,43506.0,43505.0,0.93712586]
[1633059025560,0.43390927,43506.0,43505.0,0.96512586]
[1633059026764,0.42090927,43506.0,43505.0,0.93712586]
[1633059027366,0.42090927,43506.0,43505.0,1.07708586]
[1633059027568,0.43490927,43506.0,43505.0,1.1569153]
[1633059027765,0.43490927,43506.0,43505.0,1.18121004]
[1633059027962,0.06633549,43520.0,43507.0,0.77383973]
[1633059028181,0.023,43530.0,43507.0,0.77383973]
[1633059028182,0.06632519,43528.0,43519.0,1.39957713]
[1633059028376,0.06712162,43533.0,43524.0,0.02729865]
[1633059028570,0.00083415,43533.0,43529.0,0.11189534]
[1633059028765,0.00083415,43533.0,43530.0,0.21519064]
[1633059028969,0.01369333,43532.0,43530.0,0.18263755]
[1633059029164,0.00083415,43533.0,43531.0,0.20482574]
[1633059029566,0.00083415,43533.0,43532.0,0.70129127]
[1633059029769,0.00083415,43533.0,43532.0,0.25258452]
[1633059030365,0.00083415,43533.0,43532.0,0.25076117]
[1633059030968,0.01520516,43533.0,43532.0,0.25076117]
[1633059031566,0.01520516,43533.0,43532.0,0.26676117]
[1633059032168,0.00083415,43533.0,43532.0,0.26676117]
[1633059032769,0.00083415,43533.0,43532.0,0.25076117]
[1633059033370,0.00624945,43533.0,43532.0,0.25076117]
[1633059033566,0.00624945,43533.0,43532.0,0.26676117]
[1633059034775,0.00624945,43533.0,43532.0,0.25076117]
[1633059035572,0.00624945,43533.0,43532.0,0.98793949]
[1633059036777,0.00624945,43533.0,43532.0,0.96793949]
[1633059036974,0.00624945,43533.0,43532.0,0.96846959]
[1633059037176,0.00624945,43533.0,43532.0,0.96793949]
[1633059037579,0.00624945,43533.0,43532.0,0.98493949]
[1633059038775,0.00624945,43533.0,43532.0,0.96793949]
[1633059039580,0.00624945,43533.0,43532.0,0.98893949]
[1633059040775,0.00624945,43533.0,43532.0,0.96793949]
[1633059041575,0.00624945,43533.0,43532.0,0.98693949]
[1633059042381,0.00624945,43533.0,43532.0,0.98746959]
[1633059042578,0.00624945,43533.0,43532.0,0.98693949]
[1633059042776,0.00624945,43533.0,43532.0,0.96846959]
[1633059043579,0.00624945,43533.0,43532.0,0.98693949]
[1633059044179,0.00624945,43533.0,43532.0,0.98746959]
[1633059044379,0.00624945,43533.0,43532.0,0.9856797]
[1633059044782,0.00624945,43533.0,43532.0,0.9666797]
[1633059045582,0.00624945,43533.0,43532.0,0.9876797]
[1633059046784,0.00624945,43533.0,43532.0,0.9666797]
[1633059047584,0.00624945,43533.0,43532.0,0.9826797]
[1633059048783,0.00624945,43533.0,43532.0,0.9666797]
[1633059048984,0.00624945,43533.0,43532.0,0.71770842]
[1633059049584,0.00624945,43533.0,43532.0,0.73370842]